fUSD/lending_fUSD_20250112
["ID","MTS","AMOUNT","RATE_DAILY","PERIOD"]
[348667335,1736704251837,-524.56,0.00010366,2]
[348667338,1736704251846,-500.0,0.00010366,2]
[348667340,1736704251857,-500.0,0.00010366,2]
[348667342,1736704251867,-811.52,0.00010366,2]
[348667344,1736704251877,-522.39,0.00010366,2]
[348667345,1736704251887,-500.0,0.00010366,2]
[348667347,1736704251898,-2851.51,0.00010366,2]
[348667349,1736704251907,-545.78,0.00010366,2]
[348667351,1736704251916,-500.0,0.00010366,2]
[348667353,1736704251926,-811.82,0.00010366,2]
[348667355,1736704251935,-4824.48,0.00010366,2]
[348667358,1736704251946,-500.0,0.00010366,2]
[348667360,1736704251956,-713.115456,0.00010366,2]
[348667362,1736704251965,-500.0,0.00010366,2]
[348667364,1736704251975,-3110.49,0.00010366,2]
[348667366,1736704251984,-500.0,0.00010366,2]
[348667368,1736704251994,-648.5,0.00010366,2]
[348667370,1736704252003,-693.71,0.00010366,2]
[348667372,1736704252013,-500.0,0.00010366,2]
[348667374,1736704252022,-524.92,0.00010366,2]
[348667376,1736704252031,-581.42,0.00010366,2]
[348667378,1736704252041,-747.527009,0.00010366,2]
[348667380,1736704252051,-580.55,0.00010366,2]
[348667382,1736704252060,-2040.25,0.00010366,2]
[348667384,1736704252070,-158.98037,0.00010366,2]
[348667386,1736704252079,-500.0,0.00010366,2]
[348667388,1736704252089,-500.0,0.00010366,2]
[348667390,1736704252099,-778.85,0.00010366,2]
[348667392,1736704252108,-516.63,0.00010366,2]
[348667394,1736704252118,-622.54,0.00010366,2]
[348667396,1736704252127,-588.12,0.00010366,2]
[348667398,1736704252137,-2183.07,0.00010366,2]
[348667400,1736704252147,-500.0,0.00010366,2]
[348667402,1736704252156,-610.57,0.00010366,2]
[348667404,1736704252165,-500.0,0.00010366,2]
[348667406,1736704252174,-500.0,0.00010366,2]
[348667408,1736704252184,-680.43,0.00010366,2]
[348667410,1736704252193,-500.0,0.00010366,2]
[348667412,1736704252204,-718.35,0.00010366,2]
[348667414,1736704252214,-500.0,0.00010366,2]
[348667416,1736704252223,-658.41,0.00010366,2]
[348667418,1736704252233,-4335.75,0.00010366,2]
[348667420,1736704252242,-500.0,0.00010366,2]
[348667422,1736704252251,-500.0,0.00010366,2]
[348667424,1736704252261,-831.0,0.00010366,2]
[348667426,1736704252271,-649.73,0.00010366,2]
[348667428,1736704252280,-754.09,0.00010366,2]
[348667430,1736704252289,-500.0,0.00010366,2]
[348667432,1736704252299,-560.27,0.00010366,2]
[348667434,1736704252308,-571.11,0.00010366,2]
[348667436,1736704252317,-500.0,0.00010366,2]
[348667438,1736704252327,-616.48,0.00010366,2]
[348667440,1736704252336,-595.65105048,0.00010366,2]
[348667442,1736704252346,-1343.96,0.00010366,2]
[348667444,1736704252355,-500.0,0.00010366,2]
[348667446,1736704252364,-2886.75,0.00010366,2]
[348667448,1736704252374,-527.84,0.00010366,2]
[348667450,1736704252383,-618.44,0.00010366,2]
[348667452,1736704252392,-650.89,0.00010366,2]
[348667454,1736704252401,-1062.7,0.00010366,2]
[348667456,1736704252410,-835.78,0.00010366,2]
[348667458,1736704252419,-500.0,0.00010366,2]
[348667460,1736704252429,-500.0,0.00010366,2]
[348667462,1736704252438,-696.55,0.00010366,2]
[348667464,1736704252450,-634.72,0.00010366,2]
[348667467,1736704252459,-500.0,0.00010366,2]
[348667469,1736704252469,-581.34,0.00010366,2]
[348667471,1736704252478,-1313.78,0.00010366,2]
[348667473,1736704252488,-500.0,0.00010366,2]
[348667474,1736704252497,-500.0,0.00010366,2]
[348667477,1736704252507,-500.0,0.00010366,2]
[348667479,1736704252517,-848.56,0.00010366,2]
[348667481,1736704252527,-557.94,0.00010366,2]
[348667483,1736704252536,-783.72,0.00010366,2]
[348667485,1736704252546,-226.10672556,0.00010366,2]
[348667487,1736704252555,-500.0,0.00010366,2]
[348667489,1736704252564,-648.44,0.00010366,2]
[348667491,1736704252574,-762.68,0.00010366,2]
[348667493,1736704252583,-2125.07,0.00010367,2]
[348667495,1736704252592,-500.0,0.00010367,2]
[348667497,1736704252602,-855.99,0.00010367,2]
[348667499,1736704252611,-842.29,0.00010367,2]
[348667501,1736704252620,-500.0,0.00010367,2]
[348667503,1736704252629,-546.99,0.00010367,2]
[348667505,1736704252638,-620.37,0.00010367,2]
[348667507,1736704252647,-500.0,0.00010367,2]
[348667509,1736704252656,-1078.21,0.00010367,2]
[348667511,1736704252665,-500.0,0.00010367,2]
[348667513,1736704252675,-1838.98,0.00010367,2]
[348667515,1736704252684,-509.78,0.00010367,2]
[348667517,1736704252694,-500.0,0.00010367,2]
[348667519,1736704252704,-1189.58,0.00010367,2]
[348667521,1736704252713,-3908.0,0.00010367,2]
[348667523,1736704252723,-2890.36,0.00010367,2]
[348667525,1736704252732,-2420.11,0.00010367,2]
[348667527,1736704252741,-1230.04,0.00010367,2]
[348667529,1736704252750,-967.1,0.00010367,2]
[348667531,1736704252759,-1600.27,0.00010367,2]
[348667533,1736704252769,-500.0,0.00010367,2]
[348667535,1736704252779,-888.76,0.00010367,2]
[348667537,1736704252788,-2139.68,0.00010367,2]
[348667539,1736704252797,-1053.9,0.00010367,2]
[348667541,1736704252809,-510.59,0.00010367,2]
[348667543,1736704252819,-510.59,0.00010367,2]
[348667545,1736704252828,-967.91,0.00010367,2]
[348667547,1736704252837,-954.1,0.00010368,2]
[348667549,1736704252846,-726.68,0.00010368,2]
[348667551,1736704252857,-1230.82,0.00010368,2]
[348667553,1736704252866,-2396.81,0.00010368,2]
[348667555,1736704252875,-5230.43,0.00010368,2]
[348667557,1736704252884,-1037.98,0.00010368,2]
[348667559,1736704252893,-784.12,0.00010368,2]
[348667561,1736704252903,-839.27,0.00010368,2]
[348667563,1736704252913,-2068.06,0.00010368,2]
[348667565,1736704252922,-500.0,0.00010368,2]
[348667567,1736704252931,-944.01,0.00010368,2]
[348667569,1736704252940,-1395.75,0.00010368,2]
[348667570,1736704252950,-1873.98,0.00010368,2]
[348667571,1736704252960,-906.95,0.00010368,2]
[348667572,1736704252969,-1000.0,0.00010368,2]
[348667573,1736704252978,-1183.38,0.00010368,2]
[348667574,1736704252987,-500.0,0.00010368,2]
[348667575,1736704252997,-2792.29,0.00010368,2]
[348667576,1736704253006,-795.87,0.00010399,2]
[348667577,1736704253015,-480.92393543,0.0001041,2]
[348667578,1736704253025,-480.92393543,0.00010541,2]
[348667580,1736704253034,-1656.41,0.00010638,2]
[348667582,1736704253044,-1981.95,0.00010638,2]
[348667583,1736704253053,-1367.79,0.00010638,2]
[348667584,1736704253062,-836.51,0.00010638,2]
[348667585,1736704253072,-2047.09,0.00010638,2]
[348667586,1736704253082,-500.0,0.00010638,2]
[348667587,1736704253092,-1117.41,0.00010638,2]
[348667588,1736704253102,-500.0,0.00010638,2]
[348667589,1736704253111,-500.0,0.00010638,2]
[348667590,1736704253121,-542.92,0.00010638,2]
[348667591,1736704253130,-624.41,0.00010638,2]
[348667592,1736704253141,-157.118635,0.00010639,2]
[348667593,1736704253151,-367.93843099,0.00010639,2]
[348667594,1736704253160,-500.0,0.00010639,2]
[348667595,1736704253170,-521.31,0.00010639,2]
[348667596,1736704253179,-500.0,0.00010639,2]
[348667597,1736704253189,-682.79,0.00010639,2]
[348667598,1736704253199,-2047.44,0.00010639,2]
[348667599,1736704253208,-500.0,0.00010639,2]
[348667600,1736704253217,-555.04,0.00010639,2]
[348667601,1736704253227,-500.0,0.00010639,2]
[348667602,1736704253236,-903.44,0.00010639,2]
[348667603,1736704253246,-500.0,0.00010639,2]
[348667604,1736704253256,-562.95,0.00010639,2]
[348667605,1736704253265,-500.0,0.00010639,2]
[348667606,1736704253274,-741.03,0.00010639,2]
[348667607,1736704253284,-2320.65,0.00010639,2]
[348667608,1736704253294,-878.86,0.00010639,2]
[348667609,1736704253303,-1019.62,0.00010639,2]
[348667610,1736704253312,-1033.45,0.00010639,2]
[348667611,1736704253322,-2720.45,0.00010639,2]
[348667612,1736704253332,-1144.61,0.00010639,2]
[348667613,1736704253341,-500.0,0.00010639,2]
[348667614,1736704253351,-500.0,0.00010639,2]
[348667615,1736704253362,-655.84,0.00010639,2]
[348667616,1736704253372,-500.0,0.00010639,2]
[348667617,1736704253382,-876.14,0.00010639,2]
[348667618,1736704253391,-773.77,0.00010639,2]
[348667619,1736704253400,-576.4,0.00010639,2]
[348667620,1736704253411,-500.0,0.0001064,2]
[348667621,1736704253421,-500.0,0.0001064,2]
[348667622,1736704253430,-500.0,0.0001064,2]
[348667623,1736704253440,-500.0,0.0001064,2]
[348667624,1736704253451,-735.64,0.0001064,2]
[348667625,1736704253460,-500.0,0.0001064,2]
[348667626,1736704253470,-500.0,0.0001064,2]
[348667627,1736704253479,-500.0,0.0001064,2]
[348667628,1736704253489,-507.81,0.0001064,2]
[348667629,1736704253499,-500.0,0.0001064,2]
[348667630,1736704253509,-500.0,0.0001064,2]
[348667631,1736704253519,-513.87,0.0001064,2]
[348667632,1736704253528,-514.9,0.0001064,2]
[348667633,1736704253538,-500.0,0.0001064,2]
[348667634,1736704253549,-580.19,0.0001064,2]
[348667635,1736704253559,-564.04,0.0001064,2]
[348667636,1736704253568,-500.0,0.0001064,2]
[348667637,1736704253578,-500.0,0.0001064,2]
[348667638,1736704253589,-500.0,0.0001064,2]
[348667639,1736704253598,-502.18,0.0001064,2]
[348667640,1736704253609,-500.0,0.0001064,2]
[348667641,1736704253619,-500.0,0.0001064,2]
[348667642,1736704253630,-500.0,0.0001064,2]
[348667643,1736704253639,-500.0,0.0001064,2]
[348667644,1736704253649,-500.0,0.0001064,2]
[348667645,1736704253660,-500.0,0.0001064,2]
[348667646,1736704253670,-500.0,0.0001064,2]
[348667647,1736704253679,-500.0,0.0001064,2]
[348667648,1736704253689,-500.0,0.0001064,2]
[348667649,1736704253699,-503.85,0.0001064,2]
[348667650,1736704253709,-500.0,0.0001064,2]
[348667651,1736704253718,-500.0,0.0001064,2]
[348667652,1736704253728,-512.91,0.0001064,2]
[348667653,1736704253738,-531.5,0.0001064,2]
[348667654,1736704253748,-504.5,0.0001064,2]
[348667655,1736704253759,-508.81,0.0001064,2]
[348667656,1736704253769,-500.0,0.0001064,2]
[348667657,1736704253780,-500.0,0.0001064,2]
[348667658,1736704253790,-500.0,0.0001064,2]
[348667659,1736704253799,-500.0,0.0001064,2]
[348667660,1736704253810,-500.0,0.0001064,2]
[348667661,1736704253820,-500.0,0.0001064,2]
[348667662,1736704253830,-500.0,0.0001064,2]
[348667663,1736704253839,-500.0,0.0001064,2]
[348667664,1736704253848,-500.0,0.0001064,2]
[348667665,1736704253858,-650.59,0.0001064,2]
[348667666,1736704253867,-559.72,0.0001064,2]
[348667667,1736704253876,-500.0,0.0001064,2]
[348667668,1736704253887,-614.99,0.0001064,2]
[348667669,1736704253898,-513.71,0.0001064,2]
[348667670,1736704253907,-590.01,0.0001064,2]
[348667671,1736704253916,-500.0,0.0001064,2]
[348667672,1736704253925,-500.0,0.0001064,2]
[348667673,1736704253935,-500.0,0.0001064,2]
[348667674,1736704253944,-500.0,0.0001064,2]
[348667675,1736704253953,-500.0,0.0001064,2]
[348667676,1736704253963,-500.0,0.0001064,2]
[348667677,1736704253973,-500.0,0.0001064,2]
[348667678,1736704253982,-500.0,0.0001064,2]
[348667679,1736704253991,-500.0,0.0001064,2]
[348667680,1736704254000,-500.0,0.0001064,2]
[348667681,1736704254010,-640.37,0.0001064,2]
[348667682,1736704254019,-718.74,0.0001064,2]
[348667683,1736704254028,-500.0,0.0001064,2]
[348667684,1736704254038,-580.08,0.0001064,2]
[348667685,1736704254047,-686.57,0.0001064,2]
[348667686,1736704254056,-1189.68,0.0001064,2]
[348667687,1736704254066,-500.0,0.0001064,2]
[348667688,1736704254075,-923.9,0.0001064,2]
[348667689,1736704254085,-500.0,0.0001064,2]
[348667690,1736704254095,-729.66,0.0001064,2]
[348667691,1736704254104,-1005.32,0.0001064,2]
[348667692,1736704254114,-1819.98,0.0001064,2]
[348667693,1736704254184,-553.25,0.0001064,2]
[348667694,1736704254193,-549.93,0.0001064,2]
[348667695,1736704254203,-1107.86,0.0001064,2]
[348667696,1736704254213,-500.0,0.0001064,2]
[348667697,1736704254222,-605.31,0.0001064,2]
[348667698,1736704254231,-826.99,0.0001064,2]
[348667699,1736704254241,-600.08,0.0001064,2]
[348667700,1736704254251,-500.0,0.0001064,2]
[348667701,1736704254260,-500.0,0.0001064,2]
[348667702,1736704254270,-763.74,0.0001064,2]
[348667703,1736704254279,-500.0,0.0001064,2]
[348667704,1736704254289,-500.0,0.0001064,2]
[348667705,1736704254298,-524.56,0.0001064,2]
[348667706,1736704254307,-500.0,0.0001064,2]
[348667707,1736704254317,-500.0,0.0001064,2]
[348667708,1736704254326,-811.52,0.0001064,2]
[348667709,1736704254336,-522.39,0.0001064,2]
[348667710,1736704254345,-500.0,0.0001064,2]
[348667711,1736704254354,-545.78,0.0001064,2]
[348667712,1736704254364,-2851.51,0.0001064,2]
[348667713,1736704254373,-500.0,0.0001064,2]
[348667714,1736704254382,-811.82,0.0001064,2]
[348667715,1736704254391,-4824.48,0.0001064,2]
[348667716,1736704254401,-500.0,0.0001064,2]
[348667717,1736704254410,-713.115456,0.0001064,2]
[348667718,1736704254420,-500.0,0.0001064,2]
[348667719,1736704254429,-3110.49,0.0001064,2]
[348667720,1736704254439,-500.0,0.0001064,2]
[348667721,1736704254449,-648.5,0.0001064,2]
[348667722,1736704254459,-693.71,0.0001064,2]
[348667723,1736704254468,-500.0,0.0001064,2]
[348667724,1736704254477,-524.92,0.0001064,2]
[348667725,1736704254486,-581.42,0.0001064,2]
[348667726,1736704254496,-747.527009,0.0001064,2]
[348667727,1736704254506,-580.55,0.0001064,2]
[348667728,1736704254515,-2040.25,0.0001064,2]
[348667729,1736704254525,-500.0,0.0001064,2]
[348667730,1736704254534,-500.0,0.0001064,2]
[348667731,1736704254543,-778.85,0.0001064,2]
[348667732,1736704254552,-516.63,0.0001064,2]
[348667733,1736704254561,-622.54,0.0001064,2]
[348667734,1736704254570,-588.12,0.0001064,2]
[348667735,1736704254580,-2183.07,0.0001064,2]
[348667736,1736704254589,-500.0,0.0001064,2]
[348667737,1736704254599,-610.57,0.0001064,2]
[348667738,1736704254608,-500.0,0.0001064,2]
[348667739,1736704254618,-500.0,0.0001064,2]
[348667740,1736704254628,-680.43,0.0001064,2]
[348667741,1736704254637,-500.0,0.0001064,2]
[348667742,1736704254647,-718.35,0.0001064,2]
[348667743,1736704254657,-500.0,0.0001064,2]
[348667744,1736704254666,-658.41,0.0001064,2]
[348667745,1736704254675,-4335.75,0.0001064,2]
[348667746,1736704254684,-500.0,0.0001064,2]
[348667747,1736704254696,-500.0,0.0001064,2]
[348667748,1736704254706,-831.0,0.0001064,2]
[348667749,1736704254715,-649.73,0.0001064,2]
[348667750,1736704254724,-754.09,0.0001064,2]
[348667751,1736704254736,-500.0,0.0001064,2]
[348667752,1736704254745,-560.27,0.0001064,2]
[348667753,1736704254754,-571.11,0.0001064,2]
[348667754,1736704254763,-500.0,0.0001064,2]
[348667755,1736704254773,-616.48,0.0001064,2]
[348667756,1736704254783,-1343.96,0.0001064,2]
[348667757,1736704254792,-500.0,0.0001064,2]
[348667758,1736704254802,-527.84,0.0001064,2]
[348667759,1736704254816,-2886.75,0.0001064,2]
[348667760,1736704254825,-618.44,0.0001064,2]
[348667761,1736704254834,-650.89,0.0001064,2]
[348667762,1736704254844,-1062.7,0.0001064,2]
[348667763,1736704254854,-835.78,0.0001064,2]
[348667764,1736704254864,-500.0,0.0001064,2]
[348667765,1736704254873,-500.0,0.0001064,2]
[348667766,1736704254885,-696.55,0.0001064,2]
[348667767,1736704254895,-634.72,0.0001064,2]
[348667768,1736704254904,-500.0,0.0001064,2]
[348667769,1736704254914,-581.34,0.0001064,2]
[348667770,1736704254923,-1313.78,0.0001064,2]
[348667771,1736704254932,-500.0,0.0001064,2]
[348667772,1736704254943,-500.0,0.0001064,2]
[348667773,1736704254953,-500.0,0.0001064,2]
[348667774,1736704254962,-848.56,0.0001064,2]
[348667775,1736704254973,-557.94,0.0001064,2]
[348667776,1736704254983,-783.72,0.0001064,2]
[348667777,1736704254992,-500.0,0.0001064,2]
[348667778,1736704255003,-648.44,0.0001064,2]
[348667779,1736704255012,-762.68,0.0001064,2]
[348667780,1736704255022,-2125.07,0.00010641,2]
[348667781,1736704255032,-500.0,0.00010641,2]
[348667782,1736704255042,-855.99,0.00010641,2]
[348667783,1736704255052,-842.29,0.00010641,2]
[348667784,1736704255062,-500.0,0.00010641,2]
[348667785,1736704255071,-546.99,0.00010641,2]
[348667786,1736704255081,-620.37,0.00010641,2]
[348667787,1736704255090,-500.0,0.00010641,2]
[348667788,1736704255099,-1078.21,0.00010641,2]
[348667789,1736704255110,-500.0,0.00010641,2]
[348667790,1736704255120,-1838.98,0.00010641,2]
[348667791,1736704255130,-509.78,0.00010641,2]
[348667792,1736704255139,-500.0,0.00010641,2]
[348667793,1736704255148,-1189.58,0.00010641,2]
[348667794,1736704255158,-3908.0,0.00010641,2]
[348667795,1736704255167,-2890.36,0.00010641,2]
[348667796,1736704255177,-1230.04,0.00010641,2]
[348667797,1736704255186,-967.1,0.00010641,2]
[348667798,1736704255195,-1600.27,0.00010641,2]
[348667799,1736704255205,-500.0,0.00010641,2]
[348667800,1736704255214,-888.76,0.00010641,2]
[348667801,1736704255223,-2139.68,0.00010641,2]
[348667802,1736704255232,-1053.9,0.00010641,2]
[348667803,1736704255242,-510.59,0.00010641,2]
[348667804,1736704255251,-510.59,0.00010641,2]
[348667805,1736704255260,-967.91,0.00010641,2]
[348667806,1736704255270,-954.1,0.00010642,2]
[348667807,1736704255280,-726.68,0.00010642,2]
[348667808,1736704255290,-1230.82,0.00010642,2]
[348667809,1736704255299,-2396.81,0.00010642,2]
[348667810,1736704255308,-5230.43,0.00010642,2]
[348667811,1736704255318,-1037.98,0.00010642,2]
[348667812,1736704255327,-784.12,0.00010642,2]
[348667813,1736704255336,-839.27,0.00010642,2]
[348667814,1736704255345,-2068.06,0.00010642,2]
[348667815,1736704255354,-500.0,0.00010642,2]
[348667816,1736704255363,-944.01,0.00010642,2]
[348667817,1736704255373,-1395.75,0.00010642,2]
[348667818,1736704255382,-1873.98,0.00010642,2]
[348667819,1736704255392,-906.95,0.00010642,2]
[348667820,1736704255401,-1000.0,0.00010642,2]
[348667821,1736704255410,-1183.38,0.00010642,2]
[348667822,1736704255421,-500.0,0.00010642,2]
[348667823,1736704255430,-2792.29,0.00010642,2]
[348667824,1736704255439,-480.92393543,0.00010672,2]
[348667825,1736704255450,-1000.0,0.00010674,2]
[348667826,1736704255459,-1000.0,0.000107,2]
[348667827,1736704255468,-150.0,0.00010713,2]
[348667828,1736704255478,-150.0,0.00010728,2]
[348667829,1736704255487,-640.19,0.00010729,2]
[348667830,1736704255496,-1000.0,0.00010737,2]
[348667831,1736704255507,-150.0,0.00010738,2]
[348667832,1736704255516,-150.0,0.00010748,2]
[348667833,1736704255526,-150.0,0.0001075,2]
[348667834,1736704255535,-170.5870911,0.0001075,2]
[348667835,1736704255544,-150.0,0.0001076,2]
[348667836,1736704255554,-230.59155975,0.00010774,2]
[348667837,1736704255563,-150.0,0.00010777,2]
[348667838,1736704255572,-150.0,0.00010781,2]
[348667839,1736704255582,-150.0,0.00010783,2]
[348667840,1736704255591,-150.0,0.00010794,2]
[348667841,1736704255600,-5573.249,0.000108,2]
[348667842,1736704255610,-169.249,0.000108,2]
[348667843,1736704255619,-3600.0,0.000108,3]
[348667844,1736704255628,-1583.0,0.000108,2]
[348667845,1736704255638,-480.92393543,0.00010803,2]
[348667846,1736704255647,-150.60824624,0.00010813,2]
[348667847,1736704255656,-150.0,0.00010835,2]
[348667848,1736704255666,-150.0,0.00010847,2]
[348667849,1736704255675,-150.0,0.00010857,2]
[348667850,1736704255685,-150.0,0.0001087,2]
[348667851,1736704255695,-150.0,0.00010876,2]
[348667852,1736704255705,-150.0,0.00010877,2]
[348667853,1736704255714,-150.0,0.00010879,2]
[348667854,1736704255724,-150.0,0.00010885,2]
[348667855,1736704255734,-433.0,0.00010885,2]
[348667856,1736704255743,-3000.0,0.0001089,2]
[348667857,1736704255753,-918.0,0.000109,2]
[348667858,1736704255763,-14596.939874,0.000109,2]
[348667859,1736704255772,-971.3688838,0.000109,2]
[348667860,1736704255782,-150.0,0.000109,2]
[348667861,1736704255791,-4500.0,0.000109,3]
[348667862,1736704255801,-237.62345217,0.000109,2]
[348667863,1736704255814,-1461.28113532,0.000109,2]
[348667864,1736704255823,-150.0,0.00010906,2]
[348667865,1736704255832,-150.0,0.00010909,2]
[348667866,1736704255842,-1656.41,0.00010912,2]
[348667867,1736704255852,-1981.95,0.00010912,2]
[348667868,1736704255862,-1367.79,0.00010912,2]
[348667869,1736704255872,-836.51,0.00010912,2]
[348667870,1736704255881,-2047.09,0.00010912,2]
[348667871,1736704255891,-500.0,0.00010912,2]
[348667872,1736704255901,-1117.41,0.00010912,2]
[348667873,1736704255910,-500.0,0.00010912,2]
[348667874,1736704255921,-500.0,0.00010912,2]
[348667875,1736704255931,-542.92,0.00010912,2]
[348667876,1736704255940,-624.41,0.00010912,2]
[348667877,1736704255951,-500.0,0.00010913,2]
[348667878,1736704255960,-521.31,0.00010913,2]
[348667879,1736704255969,-500.0,0.00010913,2]
[348667880,1736704255979,-682.79,0.00010913,2]
[348667881,1736704255988,-2047.44,0.00010913,2]
[348667882,1736704255998,-500.0,0.00010913,2]
[348667883,1736704256007,-555.04,0.00010913,2]
[348667884,1736704256017,-500.0,0.00010913,2]
[348667885,1736704256026,-903.44,0.00010913,2]
[348667886,1736704256036,-500.0,0.00010913,2]
[348667887,1736704256046,-562.95,0.00010913,2]
[348667888,1736704256055,-500.0,0.00010913,2]
[348667889,1736704256064,-741.03,0.00010913,2]
[348667890,1736704256074,-2320.65,0.00010913,2]
[348667891,1736704256084,-878.86,0.00010913,2]
[348667892,1736704256094,-1019.62,0.00010913,2]
[348667893,1736704256103,-1033.45,0.00010913,2]
[348667894,1736704256113,-2720.45,0.00010913,2]
[348667895,1736704256122,-1144.61,0.00010913,2]
[348667896,1736704256132,-500.0,0.00010913,2]
[348667897,1736704256141,-500.0,0.00010913,2]
[348667898,1736704256151,-655.84,0.00010913,2]
[348667899,1736704256161,-500.0,0.00010913,2]
[348667900,1736704256171,-876.14,0.00010913,2]
[348667901,1736704256180,-576.4,0.00010913,2]
[348667902,1736704256189,-773.77,0.00010913,2]
[348667903,1736704256200,-500.0,0.00010914,2]
[348667904,1736704256209,-500.0,0.00010914,2]
[348667905,1736704256218,-500.0,0.00010914,2]
[348667906,1736704256227,-500.0,0.00010914,2]
[348667907,1736704256237,-735.64,0.00010914,2]
[348667908,1736704256246,-500.0,0.00010914,2]
[348667909,1736704256256,-500.0,0.00010914,2]
[348667910,1736704256267,-500.0,0.00010914,2]
[348667911,1736704256276,-507.81,0.00010914,2]
[348667912,1736704256285,-500.0,0.00010914,2]
[348667913,1736704256295,-500.0,0.00010914,2]
[348667914,1736704256304,-513.87,0.00010914,2]
[348667915,1736704256313,-514.9,0.00010914,2]
[348667916,1736704256323,-580.19,0.00010914,2]
[348667917,1736704256332,-564.04,0.00010914,2]
[348667918,1736704256342,-500.0,0.00010914,2]
[348667919,1736704256351,-500.0,0.00010914,2]
[348667920,1736704256360,-500.0,0.00010914,2]
[348667921,1736704256369,-502.18,0.00010914,2]
[348667922,1736704256378,-500.0,0.00010914,2]
[348667923,1736704256388,-500.0,0.00010914,2]
[348667924,1736704256397,-150.0,0.00010914,2]
[348667925,1736704256407,-500.0,0.00010914,2]
[348667926,1736704256417,-500.0,0.00010914,2]
[348667927,1736704256426,-500.0,0.00010914,2]
[348667928,1736704256435,-500.0,0.00010914,2]
[348667929,1736704256444,-500.0,0.00010914,2]
[348667930,1736704256453,-500.0,0.00010914,2]
[348667931,1736704256463,-500.0,0.00010914,2]
[348667932,1736704256472,-500.0,0.00010914,2]
[348667933,1736704256482,-500.0,0.00010914,2]
[348667934,1736704256491,-512.91,0.00010914,2]
[348667935,1736704256502,-531.5,0.00010914,2]
[348667936,1736704256511,-504.5,0.00010914,2]
[348667937,1736704256520,-508.81,0.00010914,2]
[348667938,1736704256530,-500.0,0.00010914,2]
[348667939,1736704256539,-500.0,0.00010914,2]
[348667940,1736704256548,-500.0,0.00010914,2]
[348667941,1736704256557,-500.0,0.00010914,2]
[348667942,1736704256566,-500.0,0.00010914,2]
[348667943,1736704256576,-413.72395737,0.00010914,2]
[348667944,1736704256585,-500.0,0.00010914,2]
[348667945,1736704256594,-500.0,0.00010914,2]
[348667946,1736704256603,-500.0,0.00010914,2]
[348667947,1736704256613,-650.59,0.00010914,2]
[348667948,1736704256622,-559.72,0.00010914,2]
[348667949,1736704256631,-614.99,0.00010914,2]
[348667950,1736704256640,-513.71,0.00010914,2]
[348667951,1736704256649,-590.01,0.00010914,2]
[348667952,1736704256658,-500.0,0.00010914,2]
[348667953,1736704256667,-500.0,0.00010914,2]
[348667954,1736704256676,-500.0,0.00010914,2]